[Event "13th Arad Open 2020"]
[Site "Arad"]
[Date "2020.09.30"]
[Round "9.3"]
[White "Solodovnichenko, Yuri"]
[Black "Isfan, Ioan-Marius"]
[Result "1-0"]
[ECO "B31"]
[WhiteElo "2553"]
[BlackElo "2187"]
[Annotator "ChessBase"]
[PlyCount "93"]
[EventDate "2020.09.25"]
[EventType "swiss"]
[EventCountry "ROU"]
[SourceTitle "playchess.com"]
[Source "ChessBase"]
[SourceQuality "1"]
[TimeControl "5400+30"]

1. e4 {[%emt 0:00:00]} c5 {[%emt 0:00:00]} 2. Nf3 {[%emt 0:00:00]} Nc6 {[%emt 0:00:00]} 3. Bb5 {[%emt 0:00:00]} g6 {[%emt 0:00:00]} 4. O-O {[%emt 0:00:28]} Bg7 {[%emt 0:00:00]} 5. Re1 {[%emt 0:00:09]} e5 {[%emt 0:00:05]} 6. Bxc6 {[%emt 0:00:39]} dxc6 {[%emt 0:02:15]} 7. d3 {[%emt 0:00:08]} Ne7 {[%emt 0:01:05]} 8. a3 {[%emt 0:00:15]} a5 {[%emt 0:00:14]} 9. Be3 {[%emt 0:00:28]} b6 {[%emt 0:00:05]} 10. Nbd2 {[%emt 0:00:46]} a4 {[%emt 0:21:14]} 11. b4 {[%emt 0:15:38]} cxb4 {[%emt 0:13:31]} 12. axb4 {[%emt 0:04:35]} Be6 {[%emt 0:00:22]} 13. Ng5 {[%emt 0:00:50]} Bd7 {[%emt 0:01:15]} 14. Nc4 {[%emt 0:05:03]} Nc8 {[%emt 0:02:16]} 15. d4 {[%emt 0:00:35]} f6 {[%emt 0:05:05]} 16. Nf3 {[%emt 0:01:05]} Be6 {[%emt 0:03:43]} 17. Qe2 {[%emt 0:13:34]} O-O {[%emt 0:09:25]} 18. dxe5 {[%emt 0:00:26]} fxe5 {[%emt 0:00:02]} 19. Ng5 {[%emt 0:01:22]} Bf7 {[%emt 0:06:32]} 20. Red1 {[%emt 0:13:52]} Qe7 {[%emt 0:06:09]} 21. Nxf7 {[%emt 0:01:26]} Rxf7 {[%emt 0:00:05]} 22. Bxb6 {[%emt 0:01:04]} Nxb6 {[%emt 0:05:27]} 23. Nxb6 {[%emt 0:00:07]} Rb8 {[%emt 0:05:52]} 24. Nxa4 {[%emt 0:02:24]} Qxb4 {[%emt 0:00:25]} 25. c3 {[%emt 0:01:45]} Qb3 {[%emt 0:00:19]} 26. Qd3 {[%emt 0:02:49]} Rbf8 {[%emt 0:01:57]} 27. Rdb1 {[%emt 0:03:06]} Qe6 {[%emt 0:01:05]} 28. Nc5 {[%emt 0:00:17]} Qg4 {[%emt 0:01:12]} 29. Ra2 {[%emt 0:00:16]} Bh6 {[%emt 0:02:29]} 30. h3 {[%emt 0:06:28]} Qh4 {[%emt 0:00:28]} 31. Qc4 {[%emt 0:00:48]} Kh8 {[%emt 0:02:38]} 32. Ne6 {[%emt 0:00:44]} Re8 {[%emt 0:00:04]} 33. Qxc6 {[%emt 0:01:17]} Qe7 {[%emt 0:01:01]} 34. Ra8 {[%emt 0:00:25]} Rxa8 {[%emt 0:00:40]} 35. Qxa8+ {[%emt 0:00:06]} Bf8 {[%emt 0:00:02]} 36. Rb8 {[%emt 0:01:33]} Qxe6 {[%emt 0:00:06]} 37. Rxf8+ {[%emt 0:00:05]} Kg7 {[%emt 0:00:04]} 38. Rxf7+ {[%emt 0:00:33]} Qxf7 {[%emt 0:00:01]} 39. Qd5 {[%emt 0:00:11]} Qf4 {[%emt 0:00:03]} 40. Qb7+ {[%emt 0:01:52]} Kh6 {[%emt 0:00:36]} 41. Qb1 {[%emt 0:00:11]} Qd2 {[%emt 0:00:19]} 42. Qa1 {[%emt 0:00:41]} Qc2 {[%emt 0:00:51]} 43. Qe1 {[%emt 0:00:07]} Kg7 {[%emt 0:00:13]} 44. Qe3 {[%emt 0:00:37]} h6 {[%emt 0:00:30]} 45. Qa7+ {[%emt 0:01:00]} Kf6 {[%emt 0:00:46]} 46. Qb6+ {[%emt 0:00:04]} Ke7 {[%emt 0:01:44]} 47. Qc5+ {[%emt 0:00:34]} 1-0

[Event "13th Arad Open 2020"]
[Site "Arad"]
[Date "2020.09.30"]
[Round "9.4"]
[White "Manolache, Marius"]
[Black "Ghimpu, Samuel-Timotei"]
[Result "1/2-1/2"]
[ECO "A48"]
[WhiteElo "2541"]
[BlackElo "2302"]
[Annotator "ChessBase"]
[PlyCount "98"]
[EventDate "2020.09.25"]
[EventType "swiss"]
[EventCountry "ROU"]
[SourceTitle "playchess.com"]
[Source "ChessBase"]
[SourceQuality "1"]
[TimeControl "5400+30"]

1. d4 {[%emt 0:00:00]} Nf6 {[%emt 0:00:00]} 2. Nf3 {[%emt 0:00:00]} g6 {[%emt 0:00:12]} 3. Bg5 {[%emt 0:01:02]} Bg7 {[%emt 0:00:13]} 4. Nbd2 {[%emt 0:00:30]} c5 {[%emt 0:00:48]} 5. e3 {[%emt 0:01:48]} O-O {[%emt 0:11:31]} 6. Bxf6 {[%emt 0:09:14]} exf6 {[%emt 0:03:12]} 7. dxc5 {[%emt 0:00:06]} Qa5 {[%emt 0:02:12]} 8. Nd4 {[%emt 0:10:33]} Qxc5 {[%emt 0:01:05]} 9. Be2 {[%emt 0:01:50]} Nc6 {[%emt 0:04:33]} 10. c3 {[%emt 0:03:43]} f5 {[%emt 0:06:38]} 11. O-O {[%emt 0:02:32]} d5 {[%emt 0:01:37]} 12. a4 {[%emt 0:03:44]} a6 {[%emt 0:03:42]} 13. a5 {[%emt 0:02:02]} f4 {[%emt 0:05:05]} 14. N4b3 {[%emt 0:01:46]} Qd6 {[%emt 0:00:18]} 15. Nc4 {[%emt 0:00:17]} Qd8 {[%emt 0:05:35]} 16. Nb6 {[%emt 0:00:47]} Rb8 {[%emt 0:00:21]} 17. Nxd5 {[%emt 0:04:33]} fxe3 {[%emt 0:00:14]} 18. Nxe3 {[%emt 0:00:06]} b6 {[%emt 0:00:32]} 19. Qxd8 {[%emt 0:19:17]} Rxd8 {[%emt 0:00:38]} 20. Rfd1 {[%emt 0:07:00]} Rxd1+ {[%emt 0:25:10]} 21. Rxd1 {[%emt 0:01:44]} bxa5 {[%emt 0:00:25]} 22. Nxa5 {[%emt 0:07:11]} Nxa5 {[%emt 0:00:37]} 23. Rd8+ {[%emt 0:00:05]} Bf8 {[%emt 0:00:03]} 24. Bxa6 {[%emt 0:00:06]} Ra8 {[%emt 0:04:31]} 25. Bxc8 {[%emt 0:00:07]} Nc4 {[%emt 0:00:02]} 26. Kf1 {[%emt 0:09:10]} Nb6 {[%emt 0:02:46]} 27. Rxf8+ {[%emt 0:00:06]} Kxf8 {[%emt 0:00:05]} 28. Bb7 {[%emt 0:00:04]} Ra2 {[%emt 0:02:05]} 29. b4 {[%emt 0:03:32]} Na4 {[%emt 0:06:09]} 30. c4 {[%emt 0:00:12]} Nc3 {[%emt 0:02:02]} 31. g3 {[%emt 0:00:11]} Ke7 {[%emt 0:03:35]} 32. Nd5+ {[%emt 0:03:56]} Nxd5 {[%emt 0:00:10]} 33. Bxd5 {[%emt 0:00:02]} Rb2 {[%emt 0:00:35]} 34. b5 {[%emt 0:00:04]} f5 {[%emt 0:02:43]} 35. h4 {[%emt 0:00:25]} h6 {[%emt 0:00:16]} 36. Kg2 {[%emt 0:01:17]} g5 {[%emt 0:01:25]} 37. hxg5 {[%emt 0:00:05]} hxg5 {[%emt 0:00:01]} 38. Kf3 {[%emt 0:00:10]} Kd6 {[%emt 0:00:45]} 39. Ke3 {[%emt 0:00:29]} Kc5 {[%emt 0:02:00]} 40. Be6 {[%emt 0:00:25]} Rb3+ {[%emt 0:00:33]} 41. Ke2 {[%emt 0:00:12]} f4 {[%emt 0:02:13]} 42. gxf4 {[%emt 0:00:05]} gxf4 {[%emt 0:00:05]} 43. Bd5 {[%emt 0:00:25]} Kd4 {[%emt 0:00:30]} 44. f3 {[%emt 0:02:49]} Rb2+ {[%emt 0:00:40]} 45. Kf1 {[%emt 0:00:22]} Ke3 {[%emt 0:01:25]} 46. Kg1 {[%emt 0:00:05]} Kd4 {[%emt 0:00:37]} 47. Kf1 {[%emt 0:00:07]} Ke3 {[%emt 0:00:04]} 48. Kg1 {[%emt 0:00:09]} Kd4 {[%emt 0:00:07]} 49. Kf1 Ke5 1/2-1/2

[Event "13th Arad Open 2020"]
[Site "Arad"]
[Date "2020.09.30"]
[Round "9.5"]
[White "Antonica, Dragos-Andrei"]
[Black "Bogdan, Dan"]
[Result "1/2-1/2"]
[ECO "E91"]
[WhiteElo "2301"]
[BlackElo "2364"]
[Annotator "ChessBase"]
[PlyCount "243"]
[EventDate "2020.09.25"]
[EventType "swiss"]
[EventCountry "ROU"]
[SourceTitle "playchess.com"]
[Source "ChessBase"]
[SourceQuality "1"]
[TimeControl "5400+30"]

1. d4 {[%emt 0:00:00]} g6 {[%emt 0:04:56]} 2. Nf3 {[%emt 0:00:50]} Bg7 {[%emt 0:00:38]} 3. c4 {[%emt 0:00:02]} d6 {[%emt 0:00:05]} 4. Nc3 {[%emt 0:00:03]} Nf6 {[%emt 0:00:39]} 5. e4 {[%emt 0:00:08]} O-O {[%emt 0:00:19]} 6. Be2 {[%emt 0:00:01]} c6 {[%emt 0:01:32]} 7. O-O {[%emt 0:01:59]} a6 {[%emt 0:00:41]} 8. h3 {[%emt 0:05:21]} b5 {[%emt 0:03:04]} 9. a3 {[%emt 0:03:27]} Bb7 {[%emt 0:01:52]} 10. Be3 {[%emt 0:00:42]} Ne8 {[%emt 0:03:01]} 11. Qd2 {[%emt 0:04:23]} Nd7 {[%emt 0:00:34]} 12. Bh6 {[%emt 0:05:14]} bxc4 {[%emt 0:02:27]} 13. Bxc4 {[%emt 0:01:30]} c5 {[%emt 0:01:53]} 14. Bxg7 {[%emt 0:07:46]} Kxg7 {[%emt 0:02:36]} 15. dxc5 {[%emt 0:07:10]} Nxc5 {[%emt 0:00:34]} 16. Qd4+ {[%emt 0:00:41]} Kg8 {[%emt 0:03:16]} 17. b4 {[%emt 0:01:46]} Nd7 {[%emt 0:02:52]} 18. Bd5 {[%emt 0:06:15]} Bxd5 {[%emt 0:02:18]} 19. Nxd5 {[%emt 0:11:38]} Nef6 {[%emt 0:02:50]} 20. Nxf6+ {[%emt 0:09:58]} Nxf6 {[%emt 0:00:47]} 21. Rfd1 {[%emt 0:00:01]} Qb8 {[%emt 0:02:28]} 22. Rac1 {[%emt 0:04:09]} Qa7 {[%emt 0:05:45]} 23. Qxa7 {[%emt 0:03:53]} Rxa7 {[%emt 0:00:57]} 24. e5 {[%emt 0:00:09]} Ne4 {[%emt 0:06:15]} 25. Re1 {[%emt 0:07:15]} f5 {[%emt 0:02:31]} 26. exd6 {[%emt 0:00:49]} Nxd6 {[%emt 0:00:08]} 27. Nd4 {[%emt 0:00:07]} Kf7 {[%emt 0:02:50]} 28. Nc6 {[%emt 0:04:22]} Rb7 {[%emt 0:01:54]} 29. Na5 {[%emt 0:00:53]} Ra7 {[%emt 0:03:10]} 30. Rc5 {[%emt 0:02:19]} Ne4 {[%emt 0:04:40]} 31. Rc6 {[%emt 0:01:00]} Rd8 {[%emt 0:00:48]} 32. f3 {[%emt 0:02:15]} Nd6 {[%emt 0:02:31]} 33. Rb6 {[%emt 0:01:37]} Nc8 {[%emt 0:06:06]} 34. Rc6 {[%emt 0:00:09]} Nd6 {[%emt 0:00:39]} 35. Rec1 {[%emt 0:01:28]} Nb5 {[%emt 0:03:16]} 36. a4 {[%emt 0:03:09]} Nd4 {[%emt 0:00:37]} 37. Rc7 {[%emt 0:00:01]} Ne2+ {[%emt 0:10:04]} 38. Kh2 {[%emt 0:00:17]} Rd7 {[%emt 0:04:06]} 39. Rxa7 {[%emt 0:03:12]} Rxa7 {[%emt 0:00:22]} 40. Rc4 {[%emt 0:00:02]} Kf6 {[%emt 0:03:29]} 41. f4 {[%emt 0:02:35]} Rd7 {[%emt 0:03:02]} 42. b5 {[%emt 0:00:58]} axb5 {[%emt 0:00:34]} 43. axb5 {[%emt 0:00:02]} Rd5 {[%emt 0:00:11]} 44. Rb4 {[%emt 0:00:41]} Nd4 {[%emt 0:00:51]} 45. b6 {[%emt 0:00:59]} Rxa5 {[%emt 0:00:15]} 46. b7 {[%emt 0:00:08]} Nc6 {[%emt 0:00:48]} 47. Rb6 {[%emt 0:00:34]} Kf7 {[%emt 0:02:06]} 48. Rxc6 {[%emt 0:00:12]} Rb5 {[%emt 0:00:10]} 49. Rc7 {[%emt 0:00:04]} Ke6 {[%emt 0:01:25]} 50. Rc8 {[%emt 0:01:17]} Rxb7 {[%emt 0:00:19]} 51. Rh8 {[%emt 0:00:04]} Rb4 {[%emt 0:01:23]} 52. Kg3 {[%emt 0:00:33]} h5 {[%emt 0:00:23]} 53. Rg8 {[%emt 0:01:26]} Kf7 {[%emt 0:00:56]} 54. Rh8 {[%emt 0:00:33]} Rb3+ {[%emt 0:00:29]} 55. Kf2 {[%emt 0:00:20]} Rb6 {[%emt 0:00:33]} 56. h4 {[%emt 0:00:35]} Ke6 {[%emt 0:00:24]} 57. Rd8 {[%emt 0:00:13]} Rd6 {[%emt 0:00:18]} 58. Ra8 {[%emt 0:00:16]} Kd5 {[%emt 0:01:30]} 59. Kf3 {[%emt 0:00:36]} Ke6 {[%emt 0:00:06]} 60. Rg8 {[%emt 0:00:24]} Kf7 {[%emt 0:00:15]} 61. Ra8 {[%emt 0:00:06]} Rc6 {[%emt 0:00:16]} 62. Rb8 {[%emt 0:00:11]} Ke6 {[%emt 0:01:02]} 63. Rd8 {[%emt 0:00:10]} Rb6 {[%emt 0:00:21]} 64. Kf2 {[%emt 0:00:20]} Rb3 {[%emt 0:00:27]} 65. g3 {[%emt 0:00:20]} Kf7 {[%emt 0:00:27]} 66. Ra8 {[%emt 0:00:35]} Rb6 {[%emt 0:00:25]} 67. Rc8 {[%emt 0:00:15]} Ke6 {[%emt 0:00:13]} 68. Rd8 {[%emt 0:00:05]} Rd6 {[%emt 0:00:07]} 69. Ra8 {[%emt 0:00:13]} Kd5 {[%emt 0:00:13]} 70. Ra5+ {[%emt 0:00:35]} Ke6 {[%emt 0:00:08]} 71. Ra8 {[%emt 0:00:14]} Kf7 {[%emt 0:00:21]} 72. Kf3 {[%emt 0:00:30]} Re6 {[%emt 0:00:50]} 73. Rb8 {[%emt 0:00:10]} Re4 {[%emt 0:00:12]} 74. Rb7 {[%emt 0:00:25]} Kf6 {[%emt 0:00:09]} 75. Rb6+ {[%emt 0:00:05]} e6 {[%emt 0:00:02]} 76. Ra6 {[%emt 0:00:13]} Rb4 {[%emt 0:00:14]} 77. Rc6 {[%emt 0:00:41]} Rb7 {[%emt 0:00:10]} 78. Ra6 {[%emt 0:00:08]} Kf7 {[%emt 0:00:31]} 79. Rc6 {[%emt 0:00:15]} Re7 {[%emt 0:00:14]} 80. Rc5 {[%emt 0:00:25]} Rd7 {[%emt 0:00:25]} 81. Rc8 {[%emt 0:00:41]} Rd3+ {[%emt 0:00:44]} 82. Kf2 {[%emt 0:00:06]} Rd4 {[%emt 0:00:17]} 83. Rc7+ {[%emt 0:00:13]} Kf6 {[%emt 0:00:06]} 84. Rc6 {[%emt 0:00:07]} Ke7 {[%emt 0:00:30]} 85. Rc7+ {[%emt 0:00:20]} Rd7 {[%emt 0:00:13]} 86. Rc6 {[%emt 0:00:12]} Ra7 {[%emt 0:00:50]} 87. Rc8 {[%emt 0:00:22]} Ra6 {[%emt 0:02:32]} 88. Rg8 {[%emt 0:00:25]} e5 {[%emt 0:00:32]} 89. fxe5 {[%emt 0:00:20]} Re6 {[%emt 0:00:07]} 90. Kf3 {[%emt 0:00:24]} Kf7 {[%emt 0:00:04]} 91. Ra8 {[%emt 0:00:07]} Rxe5 {[%emt 0:00:05]} 92. Ra7+ {[%emt 0:00:02]} Kf6 {[%emt 0:00:17]} 93. Ra6+ {[%emt 0:00:06]} Re6 {[%emt 0:00:28]} 94. Ra8 {[%emt 0:00:20]} Rb6 {[%emt 0:00:29]} 95. Ra3 {[%emt 0:00:30]} Rd6 {[%emt 0:00:28]} 96. Rc3 {[%emt 0:00:17]} Ke5 {[%emt 0:00:41]} 97. Ra3 {[%emt 0:00:50]} Kf6 {[%emt 0:00:49]} 98. Rb3 {[%emt 0:00:09]} Rd4 {[%emt 0:00:10]} 99. Rb6+ {[%emt 0:00:18]} Kf7 {[%emt 0:00:14]} 100. Rb7+ {[%emt 0:00:41]} Ke8 {[%emt 0:00:11]} 101. Ra7 {[%emt 0:00:21]} Rg4 {[%emt 0:00:09]} 102. Ra6 {[%emt 0:01:03]} Kf7 {[%emt 0:01:23]} 103. Ra7+ {[%emt 0:00:17]} Kg8 {[%emt 0:00:07]} 104. Ra8+ {[%emt 0:00:03]} Kg7 {[%emt 0:00:05]} 105. Ra7+ {[%emt 0:00:04]} Kh6 {[%emt 0:00:04]} 106. Ra6 {[%emt 0:00:01]} Rd4 {[%emt 0:00:43]} 107. Ra7 {[%emt 0:00:43]} Re4 {[%emt 0:00:35]} 108. Rb7 {[%emt 0:00:12]} Re6 {[%emt 0:00:09]} 109. Ra7 {[%emt 0:00:43]} g5 {[%emt 0:00:12]} 110. hxg5+ {[%emt 0:00:11]} Kxg5 {[%emt 0:00:01]} 111. Ra4 {[%emt 0:00:18]} Rb6 {[%emt 0:00:14]} 112. Ra3 {[%emt 0:00:14]} Rb4 {[%emt 0:00:08]} 113. Rc3 {[%emt 0:00:26]} h4 {[%emt 0:00:22]} 114. gxh4+ {[%emt 0:00:20]} Rxh4 {[%emt 0:00:03]} 115. Rc8 {[%emt 0:02:21]} Rh3+ {[%emt 0:00:06]} 116. Kg2 {[%emt 0:00:40]} Ra3 {[%emt 0:00:13]} 117. Rc4 {[%emt 0:00:17]} Kf6 {[%emt 0:00:26]} 118. Kf2 {[%emt 0:00:26]} Ke5 {[%emt 0:00:12]} 119. Rb4 {[%emt 0:00:20]} Rd3 {[%emt 0:00:29]} 120. Ra4 {[%emt 0:00:19]} Kf6 {[%emt 0:00:26]} 121. Rb4 {[%emt 0:00:11]} Kg5 {[%emt 0:00:03]} 122. Ra4 {[%emt 0:00:19]} 1/2-1/2

[Event "13th Arad Open 2020"]
[Site "Arad"]
[Date "2020.09.30"]
[Round "9.6"]
[White "Balla, Tamas-Kristof"]
[Black "Craciun, Alexandru-Emilian"]
[Result "1-0"]
[ECO "E73"]
[WhiteElo "2356"]
[BlackElo "2090"]
[Annotator "ChessBase"]
[PlyCount "103"]
[EventDate "2020.09.25"]
[EventType "swiss"]
[EventCountry "ROU"]
[SourceTitle "playchess.com"]
[Source "ChessBase"]
[SourceQuality "1"]
[TimeControl "5400+30"]

1. d4 {[%emt 0:01:39]} Nf6 {[%emt 0:00:00]} 2. c4 {[%emt 0:00:04]} g6 {[%emt 0:00:00]} 3. Nc3 {[%emt 0:00:04]} Bg7 {[%emt 0:00:00]} 4. e4 {[%emt 0:00:04]} d6 {[%emt 0:00:02]} 5. Be2 {[%emt 0:00:09]} O-O {[%emt 0:00:09]} 6. Be3 {[%emt 0:00:03]} Na6 {[%emt 0:01:16]} 7. g4 {[%emt 0:00:31]} e5 {[%emt 0:00:22]} 8. d5 {[%emt 0:00:06]} Ne8 {[%emt 0:00:09]} 9. Qd2 {[%emt 0:00:34]} f5 {[%emt 0:00:32]} 10. gxf5 {[%emt 0:00:23]} gxf5 {[%emt 0:00:07]} 11. exf5 {[%emt 0:00:04]} Bxf5 {[%emt 0:00:22]} 12. Nf3 {[%emt 0:00:07]} Nf6 {[%emt 0:08:05]} 13. Ng5 {[%emt 0:02:10]} Qd7 {[%emt 0:00:37]} 14. O-O-O {[%emt 0:14:41]} Nc5 {[%emt 0:03:52]} 15. Rhg1 {[%emt 0:01:59]} Kh8 {[%emt 0:01:50]} 16. Rg3 {[%emt 0:14:02]} a6 {[%emt 0:09:04]} 17. Rdg1 {[%emt 0:05:40]} Rg8 {[%emt 0:00:40]} 18. b4 {[%emt 0:11:40]} Nce4 {[%emt 0:00:35]} 19. Ncxe4 {[%emt 0:00:16]} Nxe4 {[%emt 0:00:16]} 20. Nxe4 {[%emt 0:00:22]} Bxe4 {[%emt 0:00:05]} 21. Bg4 {[%emt 0:06:12]} Bf5 {[%emt 0:00:44]} 22. Qc2 {[%emt 0:00:39]} Bxg4 {[%emt 0:07:37]} 23. Rxg4 {[%emt 0:02:01]} Bf6 {[%emt 0:01:34]} 24. h3 {[%emt 0:01:59]} Rac8 {[%emt 0:06:01]} 25. Qe4 {[%emt 0:02:16]} Rxg4 {[%emt 0:02:07]} 26. Qxg4 {[%emt 0:01:14]} Qxg4 {[%emt 0:00:09]} 27. Rxg4 {[%emt 0:02:03]} c6 {[%emt 0:00:45]} 28. Kd2 {[%emt 0:00:35]} Rc7 {[%emt 0:05:01]} 29. Kd3 {[%emt 0:00:30]} cxd5 {[%emt 0:00:29]} 30. cxd5 {[%emt 0:00:08]} b5 {[%emt 0:00:48]} 31. Ke4 {[%emt 0:01:08]} Bg7 {[%emt 0:09:53]} 32. Kf5 {[%emt 0:01:12]} Re7 {[%emt 0:00:16]} 33. h4 {[%emt 0:22:33]} Kg8 {[%emt 0:01:23]} 34. Bg5 {[%emt 0:03:53]} Rf7+ {[%emt 0:00:12]} 35. Ke6 {[%emt 0:00:10]} Rxf2 {[%emt 0:00:20]} 36. Kxd6 {[%emt 0:01:48]} Kf7 {[%emt 0:00:21]} 37. a3 {[%emt 0:01:40]} Rf3 {[%emt 0:01:15]} 38. Rg2 {[%emt 0:00:42]} h6 {[%emt 0:05:40]} 39. Bc1 {[%emt 0:00:19]} Rf6+ {[%emt 0:08:30]} 40. Kc7 {[%emt 0:00:20]} Bf8 {[%emt 0:00:35]} 41. Bb2 {[%emt 0:00:36]} Ke8 {[%emt 0:05:01]} 42. Bxe5 {[%emt 0:00:41]} Rf1 {[%emt 0:01:05]} 43. Rg3 {[%emt 0:01:34]} Be7 {[%emt 0:01:51]} 44. d6 {[%emt 0:01:03]} Bd8+ {[%emt 0:00:30]} 45. Kc6 {[%emt 0:00:13]} Bxh4 {[%emt 0:00:44]} 46. d7+ {[%emt 0:00:21]} Ke7 {[%emt 0:01:17]} 47. Bd6+ {[%emt 0:00:38]} Ke6 {[%emt 0:00:21]} 48. Rg6+ {[%emt 0:00:26]} Kf7 {[%emt 0:01:40]} 49. Rxh6 {[%emt 0:00:04]} Bg5 {[%emt 0:00:26]} 50. Rh8 {[%emt 0:00:49]} Rc1+ {[%emt 0:00:09]} 51. Kb6 {[%emt 0:01:22]} Be3+ {[%emt 0:01:18]} 52. Bc5 {[%emt 0:00:19]} 1-0

[Event "13th Arad Open 2020"]
[Site "Arad"]
[Date "2020.09.30"]
[Round "9.7"]
[White "Patrascu, Catalin-Lucian"]
[Black "Paraschiv, Paul-Alexandru"]
[Result "1-0"]
[ECO "C00"]
[WhiteElo "2320"]
[BlackElo "2061"]
[Annotator "ChessBase"]
[PlyCount "97"]
[EventDate "2020.09.25"]
[EventType "swiss"]
[EventCountry "ROU"]
[SourceTitle "playchess.com"]
[Source "ChessBase"]
[SourceQuality "1"]
[TimeControl "5400+30"]

1. e4 {[%emt 0:00:00]} e6 {[%emt 0:00:00]} 2. d4 {[%emt 0:00:00]} d5 {[%emt 0:00:00]} 3. Bd3 {[%emt 0:00:00]} dxe4 {[%emt 0:00:00]} 4. Bxe4 {[%emt 0:00:00]} Nf6 {[%emt 0:00:02]} 5. Bf3 {[%emt 0:00:00]} c5 {[%emt 0:00:05]} 6. Ne2 {[%emt 0:00:00]} Nc6 {[%emt 0:00:09]} 7. Be3 {[%emt 0:00:35]} cxd4 {[%emt 0:00:08]} 8. Nxd4 {[%emt 0:00:02]} Ne5 {[%emt 0:00:11]} 9. Nc3 {[%emt 0:00:17]} Bb4 {[%emt 0:00:05]} 10. Ndb5 {[%emt 0:00:48]} Bd7 {[%emt 0:00:07]} 11. a3 {[%emt 0:05:18]} Bxc3+ {[%emt 0:00:06]} 12. Nxc3 {[%emt 0:00:03]} Nxf3+ {[%emt 0:00:06]} 13. Qxf3 {[%emt 0:00:06]} Qc7 {[%emt 0:00:02]} 14. Qg3 {[%emt 0:00:48]} Qxg3 {[%emt 0:00:44]} 15. hxg3 {[%emt 0:00:03]} Bc6 {[%emt 0:00:06]} 16. f3 {[%emt 0:00:05]} Nd5 {[%emt 0:00:15]} 17. Nxd5 {[%emt 0:00:22]} Bxd5 {[%emt 0:00:09]} 18. O-O-O {[%emt 0:01:09]} f6 {[%emt 0:03:00]} 19. b3 {[%emt 0:01:02]} b5 {[%emt 0:02:15]} 20. Kb2 {[%emt 0:01:49]} a6 {[%emt 0:02:44]} 21. Rh4 {[%emt 0:01:33]} Kf7 {[%emt 0:04:30]} 22. a4 {[%emt 0:02:25]} h6 {[%emt 0:02:54]} 23. Rb4 {[%emt 0:06:47]} Rab8 {[%emt 0:01:40]} 24. Bf4 {[%emt 0:12:20]} Rb7 {[%emt 0:02:20]} 25. c4 {[%emt 0:07:12]} Bc6 {[%emt 0:02:05]} 26. cxb5 {[%emt 0:04:53]} axb5 {[%emt 0:00:10]} 27. Rc1 {[%emt 0:08:37]} Bd7 {[%emt 0:04:23]} 28. a5 {[%emt 0:03:12]} Ra8 {[%emt 0:03:06]} 29. Bc7 {[%emt 0:00:56]} Rc8 {[%emt 0:07:35]} 30. Bb6 {[%emt 0:00:32]} Rxc1 {[%emt 0:00:11]} 31. Kxc1 {[%emt 0:00:02]} e5 {[%emt 0:01:18]} 32. Re4 {[%emt 0:11:57]} h5 {[%emt 0:04:59]} 33. Re2 {[%emt 0:01:55]} g5 {[%emt 0:01:27]} 34. Kb2 {[%emt 0:01:25]} g4 {[%emt 0:00:48]} 35. Ka3 {[%emt 0:01:56]} gxf3 {[%emt 0:01:44]} 36. gxf3 {[%emt 0:00:02]} Bc6 {[%emt 0:00:06]} 37. Re3 {[%emt 0:03:32]} Ke6 {[%emt 0:03:25]} 38. Rc3 {[%emt 0:01:23]} Kd6 {[%emt 0:04:14]} 39. Kb4 {[%emt 0:07:27]} Rg7 {[%emt 0:02:43]} 40. Rd3+ {[%emt 0:00:31]} Bd5 {[%emt 0:00:57]} 41. Bf2 {[%emt 0:00:35]} h4 {[%emt 0:01:49]} 42. gxh4 {[%emt 0:00:34]} Rg2 {[%emt 0:00:07]} 43. Bc5+ {[%emt 0:03:59]} Kc6 {[%emt 0:01:10]} 44. Rc3 {[%emt 0:01:11]} Kb7 {[%emt 0:00:05]} 45. Be7 {[%emt 0:02:29]} e4 {[%emt 0:01:50]} 46. fxe4 {[%emt 0:00:34]} Bxe4 {[%emt 0:00:02]} 47. Kxb5 {[%emt 0:00:18]} Ra2 {[%emt 0:02:39]} 48. Bd6 {[%emt 0:01:04]} Bf5 {[%emt 0:01:56]} 49. Rc7+ {[%emt 0:01:02]} 1-0